Cogmind - Beta 13 @@@ ROGUE MODE // 2024.04.17 @ 14:25:55 Player: Barbarossa Result: Destroyed by X-57 Shotgunner with Shotgun Performance ------------- Evolutions (3) 1500 Regions Visited (5) 1000 Robots Destroyed (104) 520 Value Destroyed (3296) 3296 Prototype IDs (12) 240 Alien Tech Used (0) 0 Bonus (604) 604 TOTAL SCORE: 7160 Bonus ------- Pacifist 200 High Alert Combat Kills 377 Follower Combat Kills 27 Cogmind --------- Core Integrity 0/700 Matter 150/300 Energy 94/100 System Corruption 0% Temperature Cool (0) Movement Core (350) Ox6 Location -7/Factory Parts ------- > --- POWER (1) -------- (None) > --- PROPULSION (4) --- (None) > --- UTILITY (6) ------ Coolant Injector Large Storage Unit > --- WEAPON (2) ------- (None) > --- INVENTORY (15) --- Heavy Ion Engine Armored Huge Wheel Armored Huge Wheel Power Amplifier Huge Storage Unit High-capacity Battery (250) Particle Charger Particle Charger Advanced Assault Cannon Peak State ------------ > --- POWER ------------ Cooled Deuterium Engine > --- PROPULSION ------- Armored Huge Wheel Armored Huge Wheel > --- UTILITY ---------- Cooling System Improved Cooling System Coolant Injector Large Storage Unit Improved Targeting Computer Experimental Targeting Computer > --- WEAPON ----------- Spread Laser Spread Laser > --- INVENTORY -------- Heavy Ion Engine Cooled Deuterium Engine Armored Huge Wheel Armored Huge Wheel Power Amplifier Huge Storage Unit High-capacity Battery Particle Charger Particle Charger Spread Laser Ion Cannon Advanced Assault Cannon Chainsword [Rating: 49] Favorites ----------- Power Nuclear Core Engine Light Angular Momentum Engine Power Core Nuclear Core Propulsion Compact Wheel Treads Light Treads Leg Aluminum Leg Wheel Compact Wheel Flight Unit Flight Unit Utility Large Storage Unit Device Improved Heat Sink Storage Large Storage Unit Processor Experimental Targeting Computer Protection Heavy Armor Plating Weapon Enhanced Autogun Energy Gun Particle Gun Energy Cannon Ion Cannon Ballistic Gun Enhanced Autogun Ballistic Cannon Advanced Assault Cannon Slashing Weapon Chainsword Build | -11 -10 -9 -9 -8 -7 ------- Run | Yrd Mat Mat Sto Mat Fac Slots Evolved 6 | . . 2 . 2 2 Power . | . . . . . . Propulsion 2 | . . 1 . . 1 Utility 4 | . . 1 . 2 1 Weapon . | . . . . . . Parts Attached 122 | . 10 9 38 33 32 Power 15 | . 1 1 6 3 4 Engine 14 | . 1 1 6 2 4 Core 1 | . . . . 1 . Reactor . | . . . . . . Propulsion 43 | . 5 5 12 11 10 Treads 23 | . 2 5 11 5 . Leg 5 | . 2 . . 3 . Wheel 13 | . . . . 3 10 Hover . | . . . . . . Flight 2 | . 1 . 1 . . Utility 25 | . 2 . 6 7 10 Device 9 | . . . 1 3 5 Storage 5 | . 2 . 2 . 1 Processor 3 | . . . 2 . 1 Hackware . | . . . . . . Protection 8 | . . . 1 4 3 Artifact . | . . . . . . Weapon 39 | . 2 3 14 12 8 Energy Gun 18 | . 2 2 4 7 3 Energy Cannon 13 | . . 1 9 2 1 Ballistic Gun 5 | . . . 1 3 1 Ballistic Cannon 2 | . . . . . 2 Launcher . | . . . . . . Special Weapon . | . . . . . . Impact Weapon . | . . . . . . Slashing Weapon 1 | . . . . . 1 Piercing Weapon . | . . . . . . Special Melee Weapon . | . . . . . . Unidentified Prototypes 12 | . . . 8 3 1 Parts Lost 41 | . . 6 5 11 19 Power 5 | . . 2 . 1 2 Propulsion 12 | . . 2 2 3 5 Utility 10 | . . . 1 2 7 Weapon 14 | . . 2 2 5 5 Highest Loss Streak 13 | . . 6 2 9 13 To Critical Strikes . | . . . . . . Average Slot Usage (%) 87 | . 93 75 90 86 87 Engine 7 | . 14 9 9 5 3 Core 1 | . . . . 3 3 Treads 15 | . 18 22 29 10 . Leg 2 | . 8 . . 6 . Wheel 8 | . . . . 6 24 Device 4 | . . . 5 5 6 Storage 12 | . 23 22 14 9 7 Processor 11 | . . . 10 18 14 Protection 5 | . . . 1 6 10 Energy Gun 8 | . 26 20 5 9 4 Energy Cannon 5 | . . 1 13 1 . Ballistic Gun 4 | . . . . 5 10 Naked Turns . | . . . . . . Heaviest Build 56 | 10 32 34 48 49 56 Greatest Support 69 | 20 40 60 69 66 64 Greatest Overweight (x) 10 | . 1 10 9 10 1 Average Overweight (x) . | . . . . . . Largest Inventory Capacity 25 | 8 15 15 25 15 15 Average Capacity 14 | 8 13 15 15 15 15 Most Carried 16 | 6 9 12 16 15 15 Average Carried 12 | 6 5 8 13 12 14 Final Capacity 15 | 8 15 15 15 15 15 Final Carried 15 | 6 4 7 13 15 11 Class Distribution -------------------- 86% | Mutant 13% | Scavenger-Mutant Dominant Class ---------------- Mutant | -10/Materials Mutant | -9/Materials Mutant | -9/Storage Mutant | -8/Materials Mutant | -7/Factory Resources | -11 -10 -9 -9 -8 -7 ----------- Run | Yrd Mat Mat Sto Mat Fac Matter Collected 1614 | 200 . 365 313 392 344 Remotely . | . . . . . . Salvage Created 4098 | . . 468 1530 1174 926 Parts 224 | . . 21 83 63 57 Haulers Intercepted 12 | . . . 6 4 2 Recyclers Shooed . | . . . . . . Parts Field Recycled . | . . . . . . Retrieved Matter . | . . . . . . Parts Self-Destructed . | . . . . . . Prevented . | . . . . . . Kills | -11 -10 -9 -9 -8 -7 ------- Run | Yrd Mat Mat Sto Mat Fac Combat Hostiles Destroyed 77 | . . 6 28 23 20 Melee 2 | . . . . . 2 Guns 44 | . . 6 6 15 17 Cannons 27 | . . . 21 6 . AOE 3 | . . . . 2 1 Classes Destroyed 14 | . . 5 7 . 2 Worker 6 | . . . 1 2 3 Builder 1 | . . . 1 . . Hauler 12 | . . . 6 4 2 Recycler 3 | . . 2 . 1 . Operator 2 | . . . 1 1 . Watcher 3 | . . 1 1 . 1 Swarmer 14 | . . . 2 5 7 Grunt 39 | . . 3 18 11 7 Brawler 4 | . . . 1 2 1 Duelist 7 | . . 1 3 2 1 Protector 1 | . . . 1 . . Sentry 9 | . . 2 3 3 1 Specialist 2 | . . . . . 2 Hunter 1 | . . . . . 1 Best Kill Streak 12 | . . 4 8 12 9 Combat Bots Only 10 | . . 1 4 10 7 Max Kills in Single Turn 4 | . . 2 2 4 3 Gunslinging 1 | . . . . . 1 Exploded 2 | . . . . 2 1 Melee 1 | . . . . . 1 Uniques/NPCs Destroyed . | . . . . . . Combat | -11 -10 -9 -9 -8 -7 -------- Run | Yrd Mat Mat Sto Mat Fac Hostile Shots Fired 764 | . . 120 114 177 353 Missed 192 | . . 27 23 34 108 Damage Taken 8045 | . . 1094 1360 2113 3478 Core 1590 | . . 218 171 497 704 Absorbed by Shields 52 | . . . . . 52 Regen/Repaired (Parts) 243 | . . . 243 . . Core Remaining (%) 52 | 100 100 . 2 9 . Volleys Fired 284 | . . 40 92 87 65 Largest 2 | . . 2 2 2 2 Hottest 143 | . . 116 135 143 130 Shots Fired 514 | . . 78 168 143 125 Gun 339 | . . 75 34 110 120 Cannon 175 | . . 3 134 33 5 Launcher . | . . . . . . Special . | . . . . . . Kinetic 85 | . . . 1 16 68 Thermal 429 | . . 78 167 127 57 Explosive . | . . . . . . Electromagnetic . | . . . . . . Robot Hit Streak 21 | . . 9 13 14 21 Robot Miss Streak 5 | . . 3 4 5 3 Penetration Max . | . . . . . . Secondary Targets 6 | . . . . 2 4 Max Gunslinging Chain 1 | . . . . 1 1 Shots Hit Robots 362 | . . 49 91 109 113 Core Hits 220 | . . 17 43 49 111 Critical Kills 1 | . . . 1 . . Critical Parts Destroyed . | . . . . . . Critical Strikes 18 | . . 8 5 5 . Burn 17 | . . 8 4 5 . Meltdown 1 | . . . 1 . . Melee Attacks 7 | . . . . . 7 Impact . | . . . . . . Slashing 7 | . . . . . 7 Piercing . | . . . . . . Sneak Attacks . | . . . . . . Combat Hostiles . | . . . . . . Follow-up Attacks . | . . . . . . Damage Inflicted 7921 | . . 719 2381 2410 2411 Guns 4178 | . . 673 311 1433 1761 Cannons 2580 | . . 46 1931 489 114 Explosions 927 | . . . 139 478 310 Melee 217 | . . . . . 217 Ramming 19 | . . . . 10 9 Kinetic 1100 | . . . . 180 920 Thermal 6446 | . . 719 2242 2220 1265 Explosive 139 | . . . 139 . . Electromagnetic . | . . . . . . Impact . | . . . . . . Slashing 217 | . . . . . 217 Piercing . | . . . . . . Highest Corruption . | . . . . . . Average Corruption . | . . . . . . Corruption Purged . | . . . . . . Corruption Blocked . | . . . . . . Overload Shots . | . . . . . . Overflow Damage 225 | . . . 11 184 30 Projectiles 11 | . . . 11 . . Explosions 206 | . . . . 184 22 Melee 8 | . . . . . 8 Knockbacks . | . . . . . . Impact . | . . . . . . Kinetic . | . . . . . . Secondary . | . . . . . . Self-Inflicted Damage 175 | . . . 45 . 130 Shots 3 | . . . 1 . 2 Rammed 2 | . . . . 1 1 Targets Rammed 2 | . . . . 1 1 Kicked . | . . . . . . Crushed . | . . . . . . Highest Temperature 492 | . . 492 429 475 282 Average Temperature 120 | . . 189 104 107 80 Received Heat Transfer 2428 | . . 540 609 891 388 Effects 15 | . . 5 6 3 1 Shutdowns 1 | . . . 1 . . Energy Bleed 5 | . . 1 2 1 1 Interference 4 | . . 1 3 . . Short Circuit 2 | . . 2 . . . Damage (minor) 3 | . . 1 . 2 . Siege Activations . | . . . . . . Robots Corrupted . | . . . . . . Combat Hostiles . | . . . . . . Parts Fried . | . . . . . . Impact Corruptions . | . . . . . . Robots Melted 1 | . . . 1 . . Combat Hostiles 1 | . . . 1 . . Parts Melted 19 | . . 5 6 7 1 Heat Transferred 11809 | . . 2479 3801 4259 1270 Parts Sabotaged . | . . . . . . Parts Stolen . | . . . . . . Parts Stripped . | . . . . . . Power Chain Reactions . | . . . . . . Alert | -11 -10 -9 -9 -8 -7 ------- Run | Yrd Mat Mat Sto Mat Fac Peak Influence 604 | . . 237 582 561 604 Initial 242 | . . . 81 219 242 Average 327 | . . 80 363 456 308 Maximum Alert Level 2 | . . 1 2 2 2 Low Security (%) 24 | 100 100 84 15 . 24 Level 1 32 | . . 15 42 17 44 Level 2 42 | . . . 41 82 30 Level 3 . | . . . . . . Level 4 . | . . . . . . Level 5 . | . . . . . . High Security . | . . . . . . Max Security . | . . . . . . Squads Dispatched 37 | . . 1 13 10 13 Investigation 4 | . . . 2 1 1 Extermination 2 | . . . . . 2 Reinforcement 10 | . . 1 3 3 3 Assault 2 | . . . 2 . . Garrison 19 | . . . 6 6 7 Intercept . | . . . . . . Searches Triggered . | . . . . . . Construction Impeded 1 | . . . 1 . . Haulers Reinforced 1 | . . . . . 1 Active Scanning Responses . | . . . . . . Cargo Convoy Interrupts 1 | . . . . . 1 Stealth | -11 -10 -9 -9 -8 -7 --------- Run | Yrd Mat Mat Sto Mat Fac Distress Signals 12 | . . 3 3 3 3 Communications Jammed . | . . . . . . Distress Signals . | . . . . . . Times Spotted 128 | . . 17 38 29 44 Peak Tracking Total 16 | . . 6 9 9 16 Tactical Retreats 6 | . . 2 2 1 1 Traps | -11 -10 -9 -9 -8 -7 ------- Run | Yrd Mat Mat Sto Mat Fac Traps Triggered 4 | . . . 2 . 2 Indirectly . | . . . . . . Trap Hack Attempts . | . . . . . . Triggered . | . . . . . . Disarmed . | . . . . . . Reprogrammed . | . . . . . . Reused . | . . . . . . Traps Extracted . | . . . . . . Installed . | . . . . . . Triggered . | . . . . . . Machines | -11 -10 -9 -9 -8 -7 ---------- Run | Yrd Mat Mat Sto Mat Fac Machines Disabled 18 | . . . 8 3 7 Max in Single Turn 7 | . . . 2 3 7 Machines Repaired . | . . . . . . Machines Dismantled . | . . . . . . Machines Sabotaged . | . . . . . . Overloaded Fab Kills . | . . . . . . Hacking | -11 -10 -9 -9 -8 -7 --------- Run | Yrd Mat Mat Sto Mat Fac Machines Accessed 11 | . 1 1 5 1 3 Terminals 8 | . 1 1 4 1 1 Fabricators 1 | . . . . . 1 Repair Stations 1 | . . . 1 . . Recycling Units . | . . . . . . Scanalyzers 1 | . . . . . 1 Garrison Access . | . . . . . . Total Hacks 28 | . 3 2 15 3 5 Successful 17 | . . 1 10 1 5 Failed 11 | . 3 1 5 2 . Catastrophic 2 | . 1 . 1 . . Database Lockouts . | . . . . . . Manual 10 | . 3 2 2 1 2 Terminals 16 | . 3 2 7 3 1 Fabricators 2 | . . . . . 2 Repair Stations 8 | . . . 8 . . Recycling Units . | . . . . . . Scanalyzers 2 | . . . . . 2 Garrison Access . | . . . . . . Terminal Hacks 3 | . . . 3 . . Open Door 2 | . . . 2 . . Zone Layout 1 | . . . 1 . . Fabricator Hacks 2 | . . . . . 2 Load Schematic 1 | . . . . . 1 Build 1 | . . . . . 1 Repair Station Hacks 6 | . . . 6 . . Scan Component 3 | . . . 3 . . Repair 3 | . . . 3 . . Recycling Unit Hacks . | . . . . . . Scanalyzer 2 | . . . . . 2 Insert Component 1 | . . . . . 1 Analyze 1 | . . . . . 1 Garrison Access Hacks . | . . . . . . Unauthorized Hacks 4 | . . 1 1 1 1 Terminals 4 | . . 1 1 1 1 Botnet 4 | . . 1 1 1 1 Fabricators . | . . . . . . Repair Stations . | . . . . . . Recycling Units . | . . . . . . Scanalyzers . | . . . . . . Garrison Access . | . . . . . . Data Cores Recovered . | . . . . . . Used . | . . . . . . Hacking Detections 9 | . 1 1 3 1 3 Full Trace Events 3 | . 1 . 1 . 1 Feedback Events . | . . . . . . Feedback Blocked . | . . . . . . Robot Schematics Acquired . | . . . . . . Robots Built . | . . . . . . Authchips . | . . . . . . Time . | . . . . . . Total Robot Build Rating . | . . . . . . Part Schematics Acquired 1 | . . . . . 1 Parts Built 2 | . . . . . 2 Authchips . | . . . . . . Time 84 | . . . . . 84 Total Part Build Rating 8 | . . . . . 8 Parts Repaired 3 | . . . 3 . . Time 120 | . . . 120 . . Parts Recycled . | . . . . . . Recycled Matter . | . . . . . . Retrieved Matter . | . . . . . . Retrieved Components . | . . . . . . Parts Scanalyzed 1 | . . . . . 1 Part Schematics Acquired 1 | . . . . . 1 Parts Damaged . | . . . . . . Bothacking | -11 -10 -9 -9 -8 -7 ------------ Run | Yrd Mat Mat Sto Mat Fac Used RIF Installer . | . . . . . . Robots Hacked . | . . . . . . Non-combat . | . . . . . . Combat . | . . . . . . Robot Hacks Applied . | . . . . . . Relay Couplers Released . | . . . . . . Fabnet Peak Effective % . | . . . . . . Robots Rewired . | . . . . . . Allies Hacked . | . . . . . . Hacks Repelled . | . . . . . . Allies | -11 -10 -9 -9 -8 -7 -------- Run | Yrd Mat Mat Sto Mat Fac Total Allies 2 | . . . 2 . . Largest Group 2 | . . . 2 . . Highest-Rated Group 62 | . . . 62 . . Highest-Rated Ally 31 | . . . 31 . . Total Orders . | . . . . . . Ally Attacks 7 | . . . 7 . . Total Damage 64 | . . . 64 . . Kills 1 | . . . 1 . . Allies Corrupted . | . . . . . . Allies Melted . | . . . . . . Intel | -11 -10 -9 -9 -8 -7 ------- Run | Yrd Mat Mat Sto Mat Fac Robot Analysis Total . | . . . . . . Derelict Logs Recovered . | . . . . . . Drone Launches . | . . . . . . Drone Recoveries . | . . . . . . Exploration | -11 -10 -9 -9 -8 -7 ------------- Run | Yrd Mat Mat Sto Mat Fac Turns Passed 4286 | 3 225 385 1447 1085 1141 Spaces Moved 2142 | 3 137 126 552 518 806 Core 22 | . . 3 7 12 . Treads 953 | . 89 123 545 196 . Legs 142 | 3 48 . . 91 . Wheels 1025 | . . . . 219 806 Hover . | . . . . . . Flight . | . . . . . . Fastest Speed 100 | 120 120 160 160 100 100 Average Speed 135 | 120 148 169 164 148 100 Slowest Speed 550 | 120 190 550 500 550 115 Overloaded Moves . | . . . . . . Propulsion Burnouts . | . . . . . . Robots Hopped . | . . . . . . Cave-ins Triggered . | . . . . . . Exploration Rate (%) 28 | 2 32 11 69 36 21 Regions Visited 5 Branch Regions 1 Pre-discovered Areas . | . . . . . . Known Exits Taken . | . . . . . . Unknown Exits Taken 5 | 1 1 1 1 1 . Scrap Searched . | . . . . . . Spaces Dug . | . . . . . . Terrain Destroyed 78 | . . 1 6 30 41 Melee . | . . . . . . Projectile 8 | . . 1 6 1 . AOE 70 | . . . . 29 41 Terrain Rammed . | . . . . . . Walls Destroyed . | . . . . . . Machines Disabled . | . . . . . . Actions | -11 -10 -9 -9 -8 -7 --------- Run | Yrd Mat Mat Sto Mat Fac Total 3045 | 2 159 221 929 700 1034 Wait 309 | . . 28 189 3 89 Move 2137 | 2 136 125 551 517 806 Hop . | . . . . . . Pick Up 95 | . 5 13 32 32 13 Fast Attach 33 | . 1 . 7 10 15 Attach 48 | . 3 6 13 16 10 Detach 4 | . 1 1 1 . 1 Swap 41 | . 6 3 18 7 7 Drop 85 | . 7 5 26 27 20 Fire 284 | . . 40 92 87 65 Melee 7 | . . . . . 7 Ram 1 | . . . . . 1 Kick . | . . . . . . Crush 1 | . . . . 1 . Escape Stasis . | . . . . . . Rewire . | . . . . . . Trap . | . . . . . . Miscellaneous . | . . . . . . Route ------- -11/Scrapyard -10/Materials (discovered 2 exits: *Mat / [*Min]) -9/Materials -9/Storage -8/Materials -7/Factory History --------- Turn | Location | Event 1 | -11/Scrapyard | Discovered new exit (range 3) 4 | -11/Scrapyard | Entered Materials 109 | -10/Materials | Discovered new exit (range 16) 200 | -10/Materials | Discovered new exit (range 8) 229 | -10/Materials | Entered another Materials area 229 | -9/Materials | Evolved 2 slots: Propulsion x1, Utility x1 320 | -9/Materials | Build established: Mutant 598 | -9/Materials | Core integrity fell below 50% 606 | -9/Materials | Discovered new exit (range 6) 614 | -9/Materials | Entered Storage 626 | -9/Storage | Lost 6 parts (2p2n2w) 777 | -9/Storage | Garrison activated, responded to threat 1220 | -9/Storage | Met a pair of Derelict thieves 1328 | -9/Storage | Core integrity fell below 20% 1492 | -9/Storage | Found Prototype Processor 1492 | -9/Storage | Identified Exp. Targeting Computer 1610 | -9/Storage | Garrison activated, responded to threat 1859 | -9/Storage | Discovered new exit (range 15) 1939 | -9/Storage | Repaired Imp. Treads 1991 | -9/Storage | Repaired Beamcaster 2032 | -9/Storage | Repaired Ion Cannon 2061 | -9/Storage | Entered Materials 2061 | -8/Materials | Evolved 2 slots: Utility x2 2202 | -8/Materials | Core integrity fell below 50% 2216 | -8/Materials | Garrison activated, responded to threat 2235 | -8/Materials | Destroyed 10 combat bots 2245 | -8/Materials | Lost 9 parts (1p2n2u4w) 2305 | -8/Materials | Met 7R-MNS 2371 | -8/Materials | Core integrity fell below 20% 2519 | -8/Materials | Garrison activated, responded to threat 2593 | -8/Materials | Build established: Scavenger-Mutant 2932 | -8/Materials | Build established: Mutant 3072 | -8/Materials | Discovered new exit (range 5) 3146 | -8/Materials | Entered Factory 3146 | -7/Factory | Evolved 2 slots: Propulsion x1, Utility x1 3147 | -7/Factory | Caught up to 7R-MNS 3516 | -7/Factory | Garrison activated, responded to threat 3646 | -7/Factory | Garrison activated, responded to threat 3891 | -7/Factory | Lost 3 parts (2n1u) 3896 | -7/Factory | Destroyed 7 combat bots 4026 | -7/Factory | Garrison activated, responded to threat 4084 | -7/Factory | Fabricated Arm. Huge Wheel (x2) 4239 | -7/Factory | Cargo convoy interrupted 4268 | -7/Factory | Core integrity fell below 50% 4281 | -7/Factory | Core integrity fell below 20% 4287 | -7/Factory | Destroyed by X-57 Shotgunner with Shotgun Last Messages --------------- 04265_ Penetrated by Slug. 04265_ Imp. Cooling System destroyed. 04268_ Slug penetrates G-47 Trooper. 04269_ K-01 Serf collects debris. 04269_ Cooling System destroyed. 04271_ Penetrated by Slug. 04271_ Ion Cannon destroyed. 04272_ X-67 Chaingunner destroyed. 04272_ K-01 Serf collects debris. 04274_ Critical hit (Burn: +37). 04275_ K-01 Serf collects debris. 04277_ Penetrated by Slug. 04277_ Cld. Deuterium Engine destroyed. 04278_ Exp. Targeting Computer destroyed. 04282_ G-47 Trooper destroyed. 04282_ K-01 Serf collects debris. 04283_ K-01 Serf destroyed. 04283_ Slug penetrates G-47 Trooper. 04284_ Destroyed Imp. Heat Sink. 04287_ Chainsword destroyed. Map ----- +----------------------------------------------------+ | ????????????????????????????# [ ## """ | | ????????????????????????????######/#+######### """ | | ???????????????????????????#???### + """ | | ???????????????????????????# ?? # ####### | | ???????????????????????????# """ # #?????# | | ???????????????????????????# """ # #?????# | | ???????????????????????????# """ # #?????##### | | ???????????????????????????# "" # #?????# | | ???????????????????????????# "" # ####### | | ???????????????????????????# # | | ???????????????????????????# !# | | ???????????????????????????# # " | | ???????????????????????????# + | | ???????????????????????????# # | | ???????????????????????????# # ####### | | ????????????????????????########## #?????# | | ???????????????????????? #?????##### | | ???????????????????????? #?????????? | | ??????????????????????? u ########### | | ???????????????????????? """ # [ | | ????????????????????????? """ # = = | | ?????????????############## u """ # "" ""* | | ?????????????# #i "" # "" "" | | ?????????????? =[#up"F """ # """ """ ! | | ?????????????????""""" %!%xhx"" """ # """ """= | | ?????????????????""""" !@gxu"" """ + """ """ | | ?????????????????"""" =%#Yxuu # | | ?????????????????""" =*# i # | | ??????????????? ############ #* | | ?????????????? #??????????# #* | | ?????????????# #??????????#*/%[] | | ?????????????# #??????????#*########### | | ?????????????# ""T"" #??????????#[#?????????? | | ?????????????# = """"" #??????????#*#?????????? | | ?????????????#############???????????# #?????????? | | ?????????????????????????????????????# #?????????? | | ?????????????????????????????????????# /?????????? | | ?????????????????????????????????????# #?????????? | | ?????????????????????????????????????# #?????????# | | ?????????????????????????????????????? ??????????# | | ?????????????????????????????????????? ??????????# | | ?????????????????????????????????????? ??????????# | | ?????????????????????????????????????? ??????????# | | ?????????????????????????????????????? ??????????# | | ?????????????????????????????????????? ??????????# | | ?????????????????????????????????????? ??????????# | | ?????????????????????????????????????????????????# | | ?????????????????????????????????????????????????# | | ?????????????????????????????????????????????????# | | ?????????????????????????????????????????????????# | +----------------------------------------------------+ Best States ------------- Heat Dissipation 83 Coolant Potential 65 Energy Generation 31 Energy Capacity 310 Matter Stores 500 Matter Capacity 500 Sight Range 16 Terrain Scan Density 10 Armor Coverage 825 Evasion (%) 55 Targeting Accuracy 18 Recoil Reduction 3 Item Schematics ----------------- Arm. Huge Wheel | -7/Factory | Scanalyzed Robot Schematics ------------------ None Fabricated ------------ Arm. Huge Wheel | x2 | -7/Factory Alien Tech Used ----------------- None Achievements -------------- None Challenges ------------ None Game ------ Seed ElectronSigixNeutralizer Manual? 0 Play Time 00:45:34 Cumulative 104.0 hours Start 2024.04.17 @ 13:35:58 End 2024.04.17 @ 14:25:55 Sessions 1 Manual Loads 0 Difficulty Rogue Special Mode None Game No. 205 Rogue 205 Adventurer 0 Explorer 0 Win Type - Total 0 Types 0/0/0/0/0/0/0/0/0 Lore% 30 Gallery% 40 Achievement% 27 Wizard Run 0 Options --------- Layout 1 ASCII 0 Keyboard 0 Movement Mouse Keybinds 0 Fullscreen 1 Font 24/Smallcaps Map View 50x40 Zoom Use 0% Tactical HUD 1 Map Filters NONE Filters NONE Steam 1 RUN: 866855a5-3c08-49a4-ab1f-e62904311c5d